fUST/lending_fUST_20250603
["ID","MTS","AMOUNT","RATE_DAILY","PERIOD"]
[363991908,1748955043606,-921.07,0.0001726,2]
[363991909,1748955043615,-440.0,0.0001726,2]
[363991910,1748955043624,-400.0,0.0001726,2]
[363991911,1748955043634,-440.0,0.0001726,2]
[363991912,1748955043643,-584.95,0.0001726,2]
[363991913,1748955043653,-440.0,0.0001726,2]
[363991914,1748955043663,-440.0,0.0001726,2]
[363991915,1748955043672,-440.0,0.0001726,2]
[363991916,1748955043681,-400.0,0.0001726,2]
[363991917,1748955043690,-1125.44,0.0001726,2]
[363991918,1748955043699,-3279.54120865,0.00017309,2]
[363991919,1748955043709,-250.855509,0.00017383,2]
[363991920,1748955043718,-335.16200346,0.00017438,2]
[363991922,1748955043728,-420.0,0.00017533,2]
[363991924,1748955043739,-280.3218822,0.00017533,2]
[363991926,1748955043749,-390.0,0.00017534,2]
[363991928,1748955043758,-390.0,0.00017534,2]
[363991930,1748955043768,-390.0,0.00017534,2]
[363991932,1748955043778,-440.0,0.00017534,2]
[363991934,1748955043789,-440.0,0.00017534,2]
[363991936,1748955043798,-440.0,0.00017534,2]
[363991938,1748955043808,-440.0,0.00017534,2]
[363991940,1748955043818,-440.0,0.00017534,2]
[363991942,1748955043827,-440.0,0.00017534,2]
[363991944,1748955043838,-440.0,0.00017534,2]
[363991946,1748955043848,-440.0,0.00017534,2]
[363991948,1748955043857,-440.0,0.00017534,2]
[363991950,1748955043867,-624.03,0.00017534,2]
[363991952,1748955043876,-440.0,0.00017534,2]
[363991966,1748955043886,-440.0,0.00017534,2]
[363991969,1748955044016,-440.0,0.00017534,2]
[363991971,1748955044026,-440.0,0.00017534,2]
[363991973,1748955044035,-440.0,0.00017534,2]
[363991975,1748955044044,-228.32,0.00017534,2]
[363991977,1748955044054,-420.44,0.00017534,2]
[363991979,1748955044063,-602.83,0.00017534,2]
[363991981,1748955044073,-440.0,0.00017534,2]
[363991983,1748955044083,-872.38,0.00017534,2]
[363991985,1748955044093,-440.0,0.00017534,2]
[363991987,1748955044102,-182.57,0.00017534,2]
[363991989,1748955044113,-577.85,0.00017534,2]
[363991991,1748955044122,-440.0,0.00017534,2]
[363991993,1748955044131,-440.0,0.00017534,2]
[363991995,1748955044141,-322.95749568,0.00017534,2]
[363991997,1748955044150,-440.0,0.00017534,2]
[363991999,1748955044160,-440.0,0.00017534,2]
[363992001,1748955044169,-365.99,0.00017534,2]
[363992003,1748955044178,-240.62,0.00017534,2]
[363992004,1748955044187,-440.0,0.00017534,2]
[363992007,1748955044197,-509.11,0.00017534,2]
[363992009,1748955044207,-1073.08,0.00017534,2]
[363992011,1748955044216,-440.0,0.00017534,2]
[363992012,1748955044225,-282.72,0.00017534,2]
[363992014,1748955044235,-440.0,0.00017534,2]
[363992016,1748955044246,-1310.04,0.00017534,2]
[363992018,1748955044256,-479.09,0.00017534,2]
[363992020,1748955044266,-440.0,0.00017534,2]
[363992023,1748955044276,-440.0,0.00017534,2]
[363992024,1748955044286,-440.0,0.00017534,2]
[363992026,1748955044296,-440.0,0.00017534,2]
[363992029,1748955044306,-426.8586314,0.00017534,2]
[363992030,1748955044316,-440.0,0.00017534,2]
[363992032,1748955044325,-921.07,0.00017534,2]
[363992035,1748955044335,-440.0,0.00017534,2]
[363992037,1748955044345,-440.0,0.00017534,2]
[363992039,1748955044355,-584.95,0.00017534,2]
[363992040,1748955044364,-365.45,0.00017534,2]
[363992042,1748955044373,-440.0,0.00017534,2]
[363992044,1748955044383,-440.0,0.00017534,2]
[363992047,1748955044393,-1125.44,0.00017534,2]
[363992049,1748955044404,-160.0,0.00017807,2]
[363992051,1748955044414,-380.0,0.00017808,2]
[363992053,1748955044423,-440.0,0.00017808,2]
[363992055,1748955044432,-440.0,0.00017808,2]
[363992057,1748955044442,-440.0,0.00017808,2]
[363992059,1748955044451,-440.0,0.00017808,2]
[363992061,1748955044461,-440.0,0.00017808,2]
[363992063,1748955044471,-440.0,0.00017808,2]
[363992065,1748955044480,-440.0,0.00017808,2]
[363992066,1748955044490,-440.0,0.00017808,2]
[363992068,1748955044499,-624.03,0.00017808,2]
[363992070,1748955044508,-440.0,0.00017808,2]
[363992072,1748955044518,-440.0,0.00017808,2]
[363992074,1748955044527,-440.0,0.00017808,2]
[363992076,1748955044537,-440.0,0.00017808,2]
[363992078,1748955044546,-440.0,0.00017808,2]
[363992080,1748955044556,-602.83,0.00017808,2]
[363992082,1748955044566,-440.0,0.00017808,2]
[363992084,1748955044576,-872.38,0.00017808,2]
[363992086,1748955044585,-440.0,0.00017808,2]
[363992088,1748955044595,-440.0,0.00017808,2]
[363992091,1748955044604,-440.0,0.00017808,2]
[363992093,1748955044614,-440.0,0.00017808,2]
[363992095,1748955044623,-440.0,0.00017808,2]
[363992097,1748955044632,-440.0,0.00017808,2]
[363992099,1748955044642,-1073.08,0.00017808,2]
[363992101,1748955044652,-440.0,0.00017808,2]
[363992103,1748955044662,-440.0,0.00017808,2]
[363992105,1748955044672,-1310.04,0.00017808,2]
[363992107,1748955044682,-440.0,0.00017808,2]
[363992109,1748955044692,-440.0,0.00017808,2]
[363992111,1748955044702,-440.0,0.00017808,2]
[363992113,1748955044712,-440.0,0.00017808,2]
[363992115,1748955044721,-440.0,0.00017808,2]
[363992117,1748955044731,-921.07,0.00017808,2]
[363992119,1748955044742,-440.0,0.00017808,2]
[363992121,1748955044751,-440.0,0.00017808,2]
[363992123,1748955044761,-584.95,0.00017808,2]
[363992125,1748955044772,-440.0,0.00017808,2]
[363992127,1748955044781,-440.0,0.00017808,2]
[363992129,1748955044794,-1125.44,0.00017808,2]
[363992131,1748955044804,-207.35116339,0.000179,2]
[363992133,1748955044813,-420.0,0.00018082,2]
[363992135,1748955044823,-440.0,0.00018082,2]
[363992138,1748955044834,-440.0,0.00018082,2]
[363992140,1748955044844,-440.0,0.00018082,2]
[363992142,1748955044853,-440.0,0.00018082,2]
[363992143,1748955044864,-440.0,0.00018082,2]
[363992146,1748955044874,-440.0,0.00018082,2]
[363992147,1748955044883,-440.0,0.00018082,2]
[363992150,1748955044893,-624.03,0.00018082,2]
[363992152,1748955044903,-212.33,0.00018082,2]
[363992154,1748955044912,-440.0,0.00018082,2]
[363992156,1748955044922,-325.92,0.00018082,2]
[363992158,1748955044931,-440.0,0.00018082,2]
[363992160,1748955044940,-440.0,0.00018082,2]
[363992162,1748955044949,-602.83,0.00018082,2]
[363992164,1748955044958,-440.0,0.00018082,2]
[363992166,1748955044968,-872.38,0.00018082,2]
[363992168,1748955044977,-314.56,0.00018082,2]
[363992170,1748955044988,-440.0,0.00018082,2]
[363992172,1748955044997,-440.0,0.00018082,2]
[363992174,1748955045006,-440.0,0.00018082,2]
[363992176,1748955045016,-440.0,0.00018082,2]
[363992178,1748955045025,-440.0,0.00018082,2]
[363992180,1748955045034,-1073.08,0.00018082,2]
[363992182,1748955045043,-440.0,0.00018082,2]
[363992184,1748955045052,-440.0,0.00018082,2]
[363992186,1748955045062,-1310.04,0.00018082,2]
[363992188,1748955045071,-440.0,0.00018082,2]
[363992189,1748955045080,-440.0,0.00018082,2]
[363992192,1748955045090,-440.0,0.00018082,2]
[363992194,1748955045099,-440.0,0.00018082,2]
[363992196,1748955045108,-440.0,0.00018082,2]
[363992198,1748955045119,-921.07,0.00018082,2]
[363992200,1748955045128,-440.0,0.00018082,2]
[363992202,1748955045138,-418.94,0.00018082,2]
[363992204,1748955045147,-584.95,0.00018082,2]
[363992206,1748955045157,-440.0,0.00018082,2]
[363992208,1748955045166,-440.0,0.00018082,2]
[363992210,1748955045176,-1125.44,0.00018082,2]
[363992212,1748955045185,-3393.5,0.0001818,2]
[363992214,1748955045194,-3393.5,0.0001818,2]
[363992216,1748955045204,-3393.5,0.0001818,2]
[363992218,1748955045214,-207.35116339,0.0001818,2]
[363992219,1748955045223,-160.0,0.0001831,2]
[363992221,1748955045233,-160.0,0.0001831,2]
[363992223,1748955045243,-423.63107087,0.0001831,2]
[363992225,1748955045252,-160.0,0.0001831,2]
[363992227,1748955045262,-842.5625,0.0001831,2]
[363992230,1748955045271,-160.0,0.0001831,2]
[363992231,1748955045280,-212.86879254,0.0001831,2]
[363992234,1748955045290,-229.42821335,0.0001831,2]
[363992235,1748955045299,-160.0,0.00018311,2]
[363992237,1748955045309,-160.0,0.00018311,2]
[363992239,1748955045318,-440.0,0.00018356,2]
[363992242,1748955045328,-440.0,0.00018356,2]
[363992244,1748955045339,-440.0,0.00018356,2]
[363992246,1748955045351,-440.0,0.00018356,2]
[363992248,1748955045361,-440.0,0.00018356,2]
[363992250,1748955045370,-440.0,0.00018356,2]
[363992252,1748955045380,-440.0,0.00018356,2]
[363992254,1748955045390,-624.03,0.00018356,2]
[363992256,1748955045399,-440.0,0.00018356,2]
[363992258,1748955045409,-400.15,0.00018356,2]
[363992260,1748955045419,-516.98,0.00018356,2]
[363992262,1748955045428,-602.83,0.00018356,2]
[363992265,1748955045438,-440.0,0.00018356,2]
[363992267,1748955045448,-872.38,0.00018356,2]
[363992269,1748955045457,-440.0,0.00018356,2]
[363992271,1748955045467,-440.0,0.00018356,2]
[363992273,1748955045476,-440.0,0.00018356,2]
[363992275,1748955045486,-440.0,0.00018356,2]
[363992278,1748955045496,-417.66,0.00018356,2]
[363992280,1748955045506,-1073.08,0.00018356,2]
[363992282,1748955045515,-440.0,0.00018356,2]
[363992284,1748955045525,-440.0,0.00018356,2]
[363992286,1748955045534,-1310.04,0.00018356,2]
[363992288,1748955045544,-440.0,0.00018356,2]
[363992290,1748955045554,-178.63,0.00018356,2]
[363992292,1748955045563,-440.0,0.00018356,2]
[363992295,1748955045573,-440.0,0.00018356,2]
[363992298,1748955045582,-440.0,0.00018356,2]
[363992301,1748955045592,-921.07,0.00018356,2]
[363992304,1748955045601,-440.0,0.00018356,2]
[363992307,1748955045611,-584.95,0.00018356,2]
[363992310,1748955045621,-440.0,0.00018356,2]
[363992313,1748955045631,-440.0,0.00018356,2]
[363992315,1748955045640,-1125.44,0.00018356,2]
[363992318,1748955045650,-207.35116339,0.0001846,2]
[363992321,1748955045660,-307.69258368,0.00018494,2]
[363992323,1748955045670,-335.16200346,0.00018537,2]
[363992325,1748955045679,-350.0,0.0001863,2]
[363992327,1748955045688,-440.0,0.0001863,2]
[363992329,1748955045698,-440.0,0.0001863,2]
[363992331,1748955045707,-440.0,0.0001863,2]
[363992333,1748955045716,-440.0,0.0001863,2]
[363992335,1748955045727,-440.0,0.0001863,2]
[363992337,1748955045737,-440.0,0.0001863,2]
[363992339,1748955045747,-624.03,0.0001863,2]
[363992341,1748955045756,-440.0,0.0001863,2]
[363992343,1748955045766,-602.83,0.0001863,2]
[363992345,1748955045775,-440.0,0.0001863,2]
[363992347,1748955045787,-872.38,0.0001863,2]
[363992349,1748955045798,-440.0,0.0001863,2]
[363992351,1748955045807,-440.0,0.0001863,2]
[363992353,1748955045817,-440.0,0.0001863,2]
[363992355,1748955045827,-440.0,0.0001863,2]
[363992357,1748955045836,-1073.08,0.0001863,2]
[363992359,1748955045845,-271.17,0.0001863,2]
[363992361,1748955045856,-440.0,0.0001863,2]
[363992363,1748955045866,-1310.04,0.0001863,2]
[363992365,1748955045876,-440.0,0.0001863,2]
[363992367,1748955045886,-440.0,0.0001863,2]
[363992369,1748955045896,-440.0,0.0001863,2]
[363992371,1748955045906,-440.0,0.0001863,2]
[363992373,1748955045916,-921.07,0.0001863,2]
[363992375,1748955045926,-440.0,0.0001863,2]
[363992377,1748955045936,-584.95,0.0001863,2]
[363992379,1748955045945,-440.0,0.0001863,2]
[363992381,1748955045955,-440.0,0.0001863,2]
[363992383,1748955045964,-1125.44,0.0001863,2]
[363992385,1748955045973,-207.35116339,0.0001874,2]
[363992387,1748955045983,-540.97549696,0.00018877,2]
[363992389,1748955045993,-1397.84127559,0.000189,2]
[363992391,1748955046002,-440.0,0.00018904,2]
[363992393,1748955046012,-440.0,0.00018904,2]
[363992395,1748955046021,-551.8,0.00018904,2]
[363992397,1748955046030,-440.0,0.00018904,2]
[363992399,1748955046039,-440.0,0.00018904,2]
[363992401,1748955046049,-440.0,0.00018904,2]
[363992403,1748955046058,-624.03,0.00018904,2]
[363992405,1748955046067,-440.0,0.00018904,2]
[363992407,1748955046077,-602.83,0.00018904,2]
[363992409,1748955046086,-440.0,0.00018904,2]
[363992411,1748955046095,-872.38,0.00018904,2]
[363992413,1748955046104,-440.0,0.00018904,2]
[363992415,1748955046113,-440.0,0.00018904,2]
[363992417,1748955046122,-440.0,0.00018904,2]
[363992419,1748955046132,-440.0,0.00018904,2]
[363992421,1748955046141,-1073.08,0.00018904,2]
[363992423,1748955046151,-440.0,0.00018904,2]
[363992425,1748955046160,-1310.04,0.00018904,2]
[363992427,1748955046169,-440.0,0.00018904,2]
[363992429,1748955046178,-440.0,0.00018904,2]
[363992431,1748955046187,-440.0,0.00018904,2]
[363992433,1748955046197,-409.7,0.00018904,2]
[363992435,1748955046206,-921.07,0.00018904,2]
[363992437,1748955046216,-385.1198679,0.00018904,2]
[363992439,1748955046226,-584.95,0.00018904,2]
[363992441,1748955046236,-440.0,0.00018904,2]
[363992443,1748955046245,-266.68,0.00018904,2]
[363992445,1748955046255,-1125.44,0.00018904,2]
[363992447,1748955046264,-207.35116339,0.0001902,2]
[363992449,1748955046274,-440.0,0.00019178,2]
[363992451,1748955046284,-440.0,0.00019178,2]
[363992453,1748955046293,-440.0,0.00019178,2]
[363992455,1748955046303,-555.89121644,0.00019178,2]
[363992457,1748955046312,-440.0,0.00019178,2]
[363992459,1748955046321,-440.0,0.00019178,2]
[363992461,1748955046331,-440.0,0.00019178,2]
[363992463,1748955046340,-624.03,0.00019178,2]
[363992465,1748955046350,-440.0,0.00019178,2]
[363992467,1748955046360,-602.83,0.00019178,2]
[363992469,1748955046369,-440.0,0.00019178,2]
[363992471,1748955046378,-872.38,0.00019178,2]
[363992473,1748955046387,-440.0,0.00019178,2]
[363992475,1748955046397,-440.0,0.00019178,2]
[363992477,1748955046406,-440.0,0.00019178,2]
[363992479,1748955046415,-440.0,0.00019178,2]
[363992481,1748955046424,-1073.08,0.00019178,2]
[363992483,1748955046434,-440.0,0.00019178,2]
[363992485,1748955046443,-1310.04,0.00019178,2]
[363992487,1748955046452,-440.0,0.00019178,2]
[363992489,1748955046461,-440.0,0.00019178,2]
[363992491,1748955046471,-440.0,0.00019178,2]
[363992493,1748955046480,-921.07,0.00019178,2]
[363992495,1748955046490,-584.95,0.00019178,2]
[363992497,1748955046500,-440.0,0.00019178,2]
[363992499,1748955046509,-1125.44,0.00019178,2]
[363992501,1748955046519,-151.0,0.00019178,2]
[363992503,1748955046529,-179.19075,0.00019178,2]
[363992505,1748955046538,-156.587,0.00019233,2]
[363992507,1748955046548,-162.380719,0.00019288,2]
[363992509,1748955046558,-207.35116339,0.000193,2]
[363992511,1748955046568,-168.3888056,0.00019343,2]
[363992513,1748955046577,-174.61919141,0.00019398,2]
[363992515,1748955046587,-320.0,0.00019452,2]
[363992517,1748955046596,-440.0,0.00019452,2]
[363992519,1748955046606,-440.0,0.00019452,2]
[363992521,1748955046615,-440.0,0.00019452,2]
[363992523,1748955046625,-440.0,0.00019452,2]
[363992525,1748955046634,-624.03,0.00019452,2]
[363992527,1748955046644,-440.0,0.00019452,2]
[363992529,1748955046654,-602.83,0.00019452,2]
[363992531,1748955046663,-440.0,0.00019452,2]
[363992533,1748955046672,-872.38,0.00019452,2]
[363992535,1748955046682,-160.31,0.00019452,2]
[363992537,1748955046691,-440.0,0.00019452,2]
[363992539,1748955046700,-440.0,0.00019452,2]
[363992541,1748955046710,-440.0,0.00019452,2]
[363992543,1748955046719,-1073.08,0.00019452,2]
[363992545,1748955046728,-440.0,0.00019452,2]
[363992547,1748955046738,-1310.04,0.00019452,2]
[363992549,1748955046747,-440.0,0.00019452,2]
[363992551,1748955046756,-440.0,0.00019452,2]
[363992553,1748955046766,-440.0,0.00019452,2]
[363992555,1748955046775,-921.07,0.00019452,2]
[363992557,1748955046788,-584.95,0.00019452,2]
[363992559,1748955046798,-440.0,0.00019452,2]
[363992561,1748955046807,-1125.44,0.00019452,2]
[363992563,1748955046817,-181.08010149,0.00019453,2]
[363992565,1748955046827,-187.78006525,0.00019508,2]
[363992567,1748955046836,-194.72792766,0.00019563,2]
[363992569,1748955046845,-207.35116339,0.0001958,2]
[363992571,1748955046855,-500.0,0.00019589,2]
[363992573,1748955046865,-151.0,0.00019589,2]
[363992575,1748955046874,-151.0,0.00019589,2]
[363992577,1748955046884,-500.0,0.00019589,2]
[363992579,1748955046894,-151.0,0.00019589,2]
[363992581,1748955046903,-500.0,0.00019616,2]
[363992583,1748955046913,-151.0,0.00019616,2]
[363992585,1748955046923,-500.0,0.00019616,2]
[363992587,1748955046932,-151.0,0.00019616,2]
[363992589,1748955046942,-201.93286099,0.00019618,2]
[363992591,1748955046951,-335.16200346,0.00019637,2]
[363992593,1748955046961,-519.70768548,0.00019644,2]
[363992595,1748955046971,-198.0,0.00019644,2]
[363992597,1748955046981,-500.0,0.00019644,2]
[363992599,1748955046991,-151.0,0.00019644,2]
[363992601,1748955047000,-209.40437684,0.00019673,2]
[363992603,1748955047010,-310.0,0.00019726,2]
[363992605,1748955047020,-440.0,0.00019726,2]
[363992607,1748955047030,-440.0,0.00019726,2]
[363992609,1748955047040,-440.0,0.00019726,2]
[363992611,1748955047050,-624.03,0.00019726,2]
[363992613,1748955047059,-440.0,0.00019726,2]
[363992615,1748955047069,-602.83,0.00019726,2]
[363992617,1748955047078,-440.0,0.00019726,2]
[363992619,1748955047088,-872.38,0.00019726,2]
[363992621,1748955047098,-440.0,0.00019726,2]
[363992623,1748955047107,-440.0,0.00019726,2]
[363992625,1748955047116,-440.0,0.00019726,2]
[363992627,1748955047126,-1073.08,0.00019726,2]
[363992629,1748955047135,-440.0,0.00019726,2]
[363992631,1748955047145,-1310.04,0.00019726,2]
[363992633,1748955047155,-297.18,0.00019726,2]
[363992635,1748955047165,-440.0,0.00019726,2]
[363992637,1748955047175,-440.0,0.00019726,2]
[363992639,1748955047185,-921.07,0.00019726,2]
[363992641,1748955047195,-584.95,0.00019726,2]
[363992643,1748955047205,-440.0,0.00019726,2]
[363992646,1748955047214,-1125.44,0.00019726,2]
[363992647,1748955047224,-217.15233878,0.00019728,2]
[363992649,1748955047234,-441.692,0.00019775,2]
[363992652,1748955047244,-225.18697532,0.00019783,2]
[363992654,1748955047254,-233.51889341,0.00019838,2]
[363992656,1748955047263,-207.35116339,0.0001986,2]
[363992658,1748955047274,-242.15909246,0.00019893,2]
[363992659,1748955047283,-251.11897887,0.00019948,2]
[363992661,1748955047293,-310.0,0.0002,2]
[363992664,1748955047303,-440.0,0.0002,2]
[363992665,1748955047313,-440.0,0.0002,2]
[363992680,1748955047441,-624.03,0.0002,2]
[363992682,1748955047451,-440.0,0.0002,2]
[363992684,1748955047461,-602.83,0.0002,2]
[363992686,1748955047470,-300.0,0.0002,2]
[363992688,1748955047480,-872.38,0.0002,2]
[363992690,1748955047493,-440.0,0.0002,2]
[363992692,1748955047503,-440.0,0.0002,2]
[363992694,1748955047512,-440.0,0.0002,2]
[363992696,1748955047522,-1073.08,0.0002,2]
[363992698,1748955047532,-440.0,0.0002,2]
[363992700,1748955047542,-1310.04,0.0002,2]
[363992702,1748955047551,-440.0,0.0002,2]
[363992704,1748955047561,-440.0,0.0002,2]
[363992706,1748955047571,-921.07,0.0002,2]
[363992708,1748955047580,-584.95,0.0002,2]
[363992710,1748955047590,-440.0,0.0002,2]
[363992712,1748955047600,-1125.44,0.0002,2]
[363992714,1748955047609,-207.35116339,0.0002014,2]
[363992716,1748955047618,-178.767342,0.00020187,2]
[363992718,1748955047628,-440.0,0.00020273,2]
[363992720,1748955047637,-440.0,0.00020273,2]
[363992722,1748955047647,-624.03,0.00020273,2]
[363992724,1748955047657,-440.0,0.00020273,2]
[363992726,1748955047666,-602.83,0.00020273,2]
[363992728,1748955047676,-872.38,0.00020273,2]
[363992730,1748955047686,-440.0,0.00020273,2]
[363992732,1748955047695,-440.0,0.00020273,2]
[363992734,1748955047705,-290.0,0.00020273,2]
[363992736,1748955047715,-1073.08,0.00020273,2]
[363992738,1748955047725,-440.0,0.00020273,2]
[363992740,1748955047736,-1310.04,0.00020273,2]
[363992742,1748955047746,-440.0,0.00020273,2]
[363992744,1748955047755,-440.0,0.00020273,2]
[363992746,1748955047765,-921.07,0.00020273,2]
[363992748,1748955047774,-584.95,0.00020273,2]
[363992749,1748955047785,-440.0,0.00020273,2]
[363992750,1748955047795,-1125.44,0.00020273,2]
[363992751,1748955047805,-207.35116339,0.0002042,3]
[363992752,1748955047814,-500.0,0.00020547,2]
[363992753,1748955047826,-440.0,0.00020547,2]
[363992754,1748955047835,-440.0,0.00020547,2]
[363992755,1748955047844,-624.03,0.00020547,2]
[363992756,1748955047854,-206.87503019,0.00020547,2]
[363992757,1748955047865,-602.83,0.00020547,2]
[363992758,1748955047874,-872.38,0.00020547,2]
[363992759,1748955047883,-440.0,0.00020547,2]
[363992760,1748955047893,-349.04,0.00020547,2]
[363992761,1748955047902,-1073.08,0.00020547,2]
[363992762,1748955047912,-440.0,0.00020547,2]
[363992763,1748955047922,-1310.04,0.00020547,2]
[363992764,1748955047931,-440.0,0.00020547,2]
[363992765,1748955047940,-440.0,0.00020547,2]
[363992766,1748955047949,-921.07,0.00020547,2]
[363992767,1748955047959,-584.95,0.00020547,2]
[363992768,1748955047968,-440.0,0.00020547,2]
[363992769,1748955047977,-540.97549696,0.00020594,2]
[363992770,1748955047986,-1864.52,0.000206,2]
[363992771,1748955047996,-1033.54,0.000207,2]
[363992773,1748955048006,-207.35116339,0.000207,3]
[363992774,1748955048015,-440.0,0.00020821,2]
[363992776,1748955048024,-440.0,0.00020821,2]
[363992778,1748955048034,-624.03,0.00020821,2]
[363992780,1748955048043,-602.83,0.00020821,2]
[363992782,1748955048054,-872.38,0.00020821,2]
[363992784,1748955048063,-440.0,0.00020821,2]
[363992786,1748955048073,-1073.08,0.00020821,2]
[363992788,1748955048082,-440.0,0.00020821,2]
[363992790,1748955048092,-1310.04,0.00020821,2]
[363992792,1748955048101,-440.0,0.00020821,2]
[363992794,1748955048111,-440.0,0.00020821,2]
[363992796,1748955048120,-921.07,0.00020821,2]
[363992798,1748955048129,-584.95,0.00020821,2]
[363992800,1748955048139,-440.0,0.00020821,2]
[363992802,1748955048148,-500.0,0.00020854,2]
[363992804,1748955048157,-207.4,0.00020896,2]
[363992806,1748955048166,-217.0,0.00020932,3]
[363992808,1748955048176,-207.35116339,0.0002098,4]
[363992810,1748955048186,-500.0,0.00021095,3]
[363992812,1748955048196,-170.98,0.00021095,2]
[363992814,1748955048205,-440.0,0.00021095,2]
[363992816,1748955048215,-624.03,0.00021095,2]
[363992818,1748955048224,-602.83,0.00021095,2]
[363992820,1748955048235,-872.38,0.00021095,2]
[363992822,1748955048245,-440.0,0.00021095,2]
[363992824,1748955048254,-1073.08,0.00021095,2]
[363992826,1748955048263,-440.0,0.00021095,2]
[363992828,1748955048273,-1310.04,0.00021095,2]
[363992830,1748955048283,-440.0,0.00021095,2]
[363992832,1748955048292,-440.0,0.00021095,2]
[363992834,1748955048302,-921.07,0.00021095,2]
[363992836,1748955048312,-584.95,0.00021095,2]
[363992838,1748955048321,-440.0,0.00021095,2]
[363992840,1748955048330,-500.0,0.00021099,2]
[363992842,1748955048340,-500.0,0.00021099,2]
[363992844,1748955048349,-413.15333481,0.00021099,2]
[363992846,1748955048359,-233.94907006,0.00021099,2]
[363992848,1748955048370,-500.0,0.00021099,2]
[363992850,1748955048380,-500.0,0.00021099,2]
[363992852,1748955048390,-500.0,0.00021099,2]
[363992854,1748955048400,-500.0,0.00021099,2]
[363992856,1748955048410,-500.0,0.00021099,2]
[363992858,1748955048420,-500.0,0.00021099,2]
[363992860,1748955048430,-468.7081175,0.00021099,2]
[363992862,1748955048439,-500.0,0.00021099,2]
[363992864,1748955048448,-181.69811436,0.00021099,2]
[363992866,1748955048458,-25740.98,0.000211,2]
[363992867,1748955048468,-207.35116339,0.0002126,4]
[363992869,1748955048478,-440.0,0.00021369,2]
[363992871,1748955048488,-624.03,0.00021369,2]
[363992873,1748955048498,-602.83,0.00021369,2]
[363992875,1748955048508,-872.38,0.00021369,2]
[363992877,1748955048518,-440.0,0.00021369,2]
[363992879,1748955048528,-1073.08,0.00021369,2]
[363992881,1748955048538,-440.0,0.00021369,2]
[363992883,1748955048548,-1310.04,0.00021369,2]
[363992885,1748955048559,-440.0,0.00021369,2]
[363992887,1748955048568,-487.93,0.00021369,2]
[363992889,1748955048578,-921.07,0.00021369,2]
[363992891,1748955048588,-584.95,0.00021369,2]
[363992893,1748955048598,-440.0,0.00021369,2]
[363992895,1748955048608,-207.35116339,0.0002154,5]
[363992897,1748955048618,-500.0,0.00021643,4]
[363992899,1748955048628,-440.0,0.00021643,2]
[363992901,1748955048638,-624.03,0.00021643,2]
[363992903,1748955048648,-602.83,0.00021643,2]
[363992905,1748955048657,-872.38,0.00021643,2]
[363992907,1748955048667,-440.0,0.00021643,2]